Cogmind - Beta 14 @@@ ROGUE MODE // 2024.11.22 @ 21:19:59 Player: Tereza Result: Destroyed by AG-85343 with Assembled Focal Cannon Performance ------------- Evolutions (4) 2000 Regions Visited (17) 3400 Robots Destroyed (190) 950 Value Destroyed (7253) 7253 Prototype IDs (27) 540 Alien Tech Used (0) 0 Bonus (1556) 1556 TOTAL SCORE: 15699 Bonus ------- High Alert Combat Kills 1383 Follower Combat Kills 338 Entered Garrisons 200 Aligned with FarCom 300 Met Imprinter 300 Destroyed Z-Imprinter 1000 Acquired ECA 300 Friendly Fire -2265 Cogmind --------- Core Integrity 0/850 Matter 22/300 Energy 58/150 System Corruption 0% Temperature Warm (138) Movement Core (1800) Ox35 Location -6/Deep Caves Parts ------- > --- POWER (1) -------- Light Angular Momentum Engine > --- PROPULSION (6) --- (None) > --- UTILITY (6) ------ Improved Cooling System Huge Storage Unit Core Analyzer Hacking Suite Hacking Suite > --- WEAPON (2) ------- Plasma Cannon Phase Cannon > --- INVENTORY (25) --- Medium Treads Improved Sensor Array Advanced Sensor Array Encrypted Comm Array Medium Reflective Plating Hacking Drone Bay Proton Missile Launcher Proton Missile Launcher Molecular Deconstructor Peak State ------------ > --- POWER ------------ Micro Nuclear Core > --- PROPULSION ------- Medium Treads Heavy Treads Heavy Treads Enhanced Armored Medium Treads > --- UTILITY ---------- Huge Storage Unit Advanced Sensor Array Improved Heavy Armor Plating Hacking Suite Hacking Suite > --- WEAPON ----------- Molecular Deconstructor > --- INVENTORY -------- Light Angular Momentum Engine Antimatter Reactor Improved Medium Treads Improved Medium Treads Armored Huge Wheel Improved Cooling System Medium Matter Pod Improved Sensor Array Encrypted Comm Array Core Analyzer Kinecellerator Improved Light Armor Plating Improved Light Armor Plating Medium Reflective Plating System Restoration Module Plasma Cannon Phase Cannon Magnetic Acceleration Cannon Magnetic Acceleration Cannon Proton Missile Launcher Proton Missile Launcher Rocket Launcher Heavy Rocket Launcher DRS Beacon [Rating: 90] Favorites ----------- Power Micro Nuclear Core Engine Light Ion Engine Power Core Micro Nuclear Core Reactor Antimatter Reactor Propulsion Light Treads Treads Light Treads Leg Aluminum Leg Wheel Wheel Utility Huge Storage Unit Device Improved Cooling System Storage Huge Storage Unit Processor Modified TNC Hackware Hacking Suite Protection Improved Heavy Armor Plating Weapon Beam Cannon Energy Gun Particle Gun Energy Cannon Beam Cannon Ballistic Gun Hypervelocity Gauss Rifle Ballistic Cannon Light Cannon Launcher Heavy Rocket Launcher Special Weapon Molecular Deconstructor Build | -11 -10 -10 -9 -9 -9 -8 -8 -8 -8 -7 -7 -7 -6 -6 -6 -6 -6 ------- Run | Yrd Mat Min Mat Min Exi Min Mat Gar Mat Fac Was Fac Fac Low Low Zio Dee Slots Evolved 8 | . . . 2 . . . 2 . . 2 . . 2 . . . . Power . | . . . . . . . . . . . . . . . . . . Propulsion 4 | . . . 1 . . . 1 . . 1 . . 1 . . . . Utility 4 | . . . 1 . . . 1 . . 1 . . 1 . . . . Weapon . | . . . . . . . . . . . . . . . . . . Parts Attached 157 | 6 8 4 15 . . 11 9 38 9 9 2 . 6 6 11 1 22 Power 20 | 1 1 2 1 . . 2 1 7 . 1 . . 1 . . . 3 Engine 10 | 1 1 1 . . . 1 1 3 . . . . . . . . 2 Core 9 | . . 1 1 . . 1 . 4 . 1 . . 1 . . . . Reactor 1 | . . . . . . . . . . . . . . . . . 1 Propulsion 51 | 2 2 2 5 . . 4 5 14 5 4 2 . 2 . 2 . 2 Treads 35 | 2 . 1 1 . . 3 4 11 3 3 2 . 2 . 2 . 1 Leg 3 | . . . 2 . . . . 1 . . . . . . . . . Wheel 13 | . 2 1 2 . . 1 1 2 2 1 . . . . . . 1 Hover . | . . . . . . . . . . . . . . . . . . Flight . | . . . . . . . . . . . . . . . . . . Utility 36 | 1 2 . 5 . . 3 2 7 2 2 . . 1 2 2 . 7 Device 10 | . . . 1 . . 1 . 1 1 . . . . 2 . . 4 Storage 2 | 1 1 . . . . . . . . . . . . . . . . Processor 3 | . 1 . . . . . 1 . . . . . . . . . 1 Hackware 3 | . . . . . . . 1 . . 1 . . 1 . . . . Protection 18 | . . . 4 . . 2 . 6 1 1 . . . . 2 . 2 Artifact . | . . . . . . . . . . . . . . . . . . Weapon 50 | 2 3 . 4 . . 2 1 10 2 2 . . 2 4 7 1 10 Energy Gun 4 | 1 1 . . . . . . . 1 . . . . . . . 1 Energy Cannon 10 | . 1 . 1 . . 1 1 3 1 . . . . . . . 2 Ballistic Gun 14 | 1 . . 1 . . 1 . 7 . . . . . 1 2 . 1 Ballistic Cannon 12 | . 1 . 2 . . . . . . 2 . . 2 1 1 . 3 Launcher 8 | . . . . . . . . . . . . . . 2 2 1 3 Special Weapon 2 | . . . . . . . . . . . . . . . 2 . . Impact Weapon . | . . . . . . . . . . . . . . . . . . Slashing Weapon . | . . . . . . . . . . . . . . . . . . Piercing Weapon . | . . . . . . . . . . . . . . . . . . Special Melee Weapon . | . . . . . . . . . . . . . . . . . . Unidentified Prototypes 4 | . . . . . . . . . . . 1 . . . 1 . 2 Parts Lost 82 | . 3 4 8 1 . 9 2 23 4 5 . . . 1 2 . 20 Power 15 | . 1 2 1 . . 2 . 5 . 1 . . . . . . 3 Propulsion 30 | . 1 2 2 . . 3 1 8 3 2 . . . . 1 . 7 Utility 19 | . . . 2 . . 4 . 5 1 1 . . . 1 1 . 4 Weapon 18 | . 1 . 3 1 . . 1 5 . 1 . . . . . . 6 Highest Loss Streak 17 | . 1 2 3 1 . 5 2 7 2 2 . . . 1 1 . 17 To Critical Strikes 1 | . 1 . . . . . . . . . . . . . . . . Average Slot Usage (%) 89 | . 91 97 97 98 88 94 91 93 87 86 77 76 79 79 82 87 85 Engine 3 | . 12 5 4 . . 7 1 4 9 5 . . . . . . . Core 4 | . . 6 5 11 11 2 7 3 . 1 7 7 6 6 6 6 2 Treads 23 | . 14 13 13 . . 21 25 30 30 21 16 15 24 26 27 33 28 Leg 1 | . . . 7 22 22 . . . . . . . . . . . . Wheel 6 | . 13 14 11 11 11 10 8 4 3 12 7 7 . . . . . Device 5 | . . . 4 11 11 10 9 4 5 7 7 7 6 5 6 6 2 Storage 8 | . 14 14 11 11 11 11 9 9 9 7 7 7 6 6 6 6 6 Processor 4 | . 8 14 6 . . . 7 9 3 . . . . . . . 4 Hackware 5 | . . . . . . . 4 3 . 6 7 7 12 13 13 13 13 Protection 6 | . . . 10 11 11 7 . 5 9 7 7 7 6 6 9 13 9 Energy Cannon 5 | . 2 14 9 9 . 3 10 8 15 6 . . . . . . . Ballistic Gun 5 | . 11 . . 11 11 18 7 9 . . . . . 5 5 6 5 Ballistic Cannon 5 | . 7 14 12 . . . . . . 4 15 15 13 6 2 . . Peak Build Rating 90 | 6 10 12 17 17 17 20 36 43 46 49 67 67 81 82 90 76 82 Average Rating 42 | 5 8 10 13 16 16 18 27 33 41 43 62 67 77 80 78 73 71 On Entrance 38 | . 6 10 10 17 16 17 20 34 42 35 48 67 67 81 82 72 76 Naked Turns . | . . . . . . . . . . . . . . . . . . Heaviest Build 128 | 12 89 91 95 95 92 97 96 126 128 126 116 116 119 119 116 106 116 Greatest Support 203 | 40 40 10 20 10 10 16 20 80 90 28 28 28 203 203 203 193 193 Greatest Overweight (x) 12 | . 8 9 9 9 9 6 9 9 12 6 4 4 4 . . . 3 Average Overweight (x) 3 | . 5 8 8 9 9 5 5 3 2 5 4 4 . . . . . Largest Inventory Capacity 25 | 8 25 25 25 25 25 25 25 25 25 25 25 25 25 25 25 25 25 Average Capacity 24 | 7 24 25 25 25 25 25 25 25 25 25 25 25 25 25 25 25 25 Most Carried 25 | 6 25 25 25 24 25 25 25 25 25 25 25 25 25 25 25 25 25 Average Carried 23 | 4 20 24 23 24 24 24 22 24 24 24 24 24 24 24 24 24 23 Final Capacity 25 | 8 25 25 25 25 25 25 25 25 25 25 25 25 25 25 25 25 25 Final Carried 25 | 6 25 23 24 24 25 24 24 25 23 25 25 25 25 25 24 25 10 Class Distribution -------------------- 72% | Scavenger-Mutant 27% | Mutant Dominant Class ---------------- Mutant | -10/Materials Mutant | -10/Mines Mutant | -9/Materials Scavenger-Mutant | -9/Mines Scavenger-Mutant | -9/Exiles Scavenger-Mutant | -8/Mines Scavenger-Mutant | -8/Materials Scavenger-Mutant | -8/Garrison Scavenger-Mutant | -8/Materials Scavenger-Mutant | -7/Factory Scavenger-Mutant | -7/Waste Scavenger-Mutant | -7/Factory Scavenger-Mutant | -6/Factory Scavenger-Mutant | -6/Lower Caves Scavenger-Mutant | -6/Lower Caves Scavenger-Mutant | -6/Zion Scavenger-Mutant | -6/Deep Caves Resources | -11 -10 -10 -9 -9 -9 -8 -8 -8 -8 -7 -7 -7 -6 -6 -6 -6 -6 ----------- Run | Yrd Mat Min Mat Min Exi Min Mat Gar Mat Fac Was Fac Fac Low Low Zio Dee Matter Collected 4318 | 260 382 94 555 . . 225 42 1089 147 157 92 50 279 271 406 . 269 Remotely . | . . . . . . . . . . . . . . . . . . Salvage Created 7191 | . 890 145 1056 . . 420 219 1541 1130 651 . 71 305 215 273 . 275 Parts 423 | . 59 6 71 . . 19 15 97 50 43 . 8 21 12 16 . 6 Haulers Intercepted 5 | . 1 . 4 . . . . . . . . . . . . . . Recyclers Shooed 6 | . 2 . 1 . . . 2 . . 1 . . . . . . . Parts Field Recycled . | . . . . . . . . . . . . . . . . . . Retrieved Matter . | . . . . . . . . . . . . . . . . . . Parts Self-Destructed 26 | . . . . . . . . . . . . . . 8 18 . . Prevented 5 | . . . . . . . . . . . . . . 5 . . . Kills | -11 -10 -10 -9 -9 -9 -8 -8 -8 -8 -7 -7 -7 -6 -6 -6 -6 -6 ------- Run | Yrd Mat Min Mat Min Exi Min Mat Gar Mat Fac Was Fac Fac Low Low Zio Dee Combat Hostiles Destroyed 144 | . 16 6 24 . . 6 4 36 20 13 . . 4 5 9 . 1 Guns 47 | . 11 . . . . 6 2 22 5 . . . . . 1 . . Cannons 81 | . 5 6 24 . . . 2 12 12 13 . . 4 3 . . . AOE 10 | . . . . . . . . . . . . . . 2 7 . 1 Classes Destroyed 19 | . 8 . 2 . . 1 . 5 1 1 . . . . . . 1 Worker 5 | . 3 . 1 . . 1 . . . . . . . . . . . Builder 1 | . . . . . . . . . 1 . . . . . . . . Tunneler 1 | . . . . . . . . . . 1 . . . . . . . Hauler 5 | . 1 . 4 . . . . . . . . . . . . . . Recycler 10 | . 3 . 3 . . 2 . . . 1 . . 1 . . . . Mechanic 2 | . 1 . . . . . . . 1 . . . . . . . . Operator 5 | . 1 . 2 . . . . . . 1 . 1 . . . . . Watcher 12 | . 3 . 3 . . . . . 1 2 . 2 1 . . . . Swarmer 34 | . 8 3 12 . . . . 3 . 4 . . . . 4 . . Cutter 3 | . . . . . . . . 3 . . . . . . . . . Grunt 52 | . 8 3 5 . . 5 . 12 11 5 . . . 3 . . . Brawler 4 | . . . . . . 1 . 2 . 1 . . . . . . . Duelist 5 | . . . 1 . . . . . 4 . . . . . . . . Sentry 28 | . . . 6 . . . 4 10 5 1 . . 2 . . . . Specialist 3 | . . . . . . . . 1 . . . . . . 2 . . Hunter 5 | . . . . . . . . 1 . . . . . 2 2 . . Programmer 8 | . . . . . . . . 3 . 2 . . 2 . 1 . . Behemoth 1 | . . . . . . . . 1 . . . . . . . . . Z-Technician 1 | . . . . . . . . . . . . . . . . . 1 Z-Light 1 | . . . . . . . . . . . . . . . . . 1 Thug 2 | . . . . . . . . . . . . . . . . . 2 Savage 1 | . . . . . . . . . . . . . . . . . 1 Butcher 1 | . . . . . . . . . . . . . . . . . 1 Wizard 1 | . . . . . . . . . . . . . . . . . 1 Best Kill Streak 7 | . 5 3 6 . . 5 2 4 5 7 . 3 2 3 4 . 1 Combat Bots Only 6 | . 3 3 6 . . 3 2 4 5 5 . . 1 3 4 . 1 Max Kills in Single Turn 5 | . 2 1 2 . . 1 1 2 2 1 . 1 1 1 2 . 5 Gunslinging . | . . . . . . . . . . . . . . . . . . Exploded 2 | . . . . . . . . . . . . . . 1 2 . 1 Melee . | . . . . . . . . . . . . . . . . . . Uniques/NPCs Destroyed . | . . . . . . . . . . . . . . . . . . Combat | -11 -10 -10 -9 -9 -9 -8 -8 -8 -8 -7 -7 -7 -6 -6 -6 -6 -6 -------- Run | Yrd Mat Min Mat Min Exi Min Mat Gar Mat Fac Was Fac Fac Low Low Zio Dee Hostile Shots Fired 1152 | . 74 37 140 15 . 74 20 336 86 95 . 18 43 49 83 . 82 Missed 315 | . 18 7 42 1 . 17 4 94 20 28 . 10 21 20 21 . 12 Damage Taken 15105 | . 516 326 1078 162 . 905 228 4069 1322 943 . 197 381 516 876 . 3586 Core 1833 | . 139 36 96 12 . 101 41 382 68 69 . . 10 71 67 . 741 Absorbed by Shields 26 | . . . . . . . . 26 . . . . . . . . . Reduced by Siege Mode 26 | . . . . . . . . . . . . . . . 26 . . Redirected to Shielding 50 | . . . . . . . . 50 . . . . . . . . . Regen/Repaired (Parts) 341 | . . . . . . . . . . . 186 35 120 . . . . Core Remaining (%) 55 | 100 . 30 . . . 47 . . 10 . . 90 . . . . . Volleys Fired 540 | . 53 20 91 . . 33 14 142 62 35 . 6 20 14 17 . 33 Largest 2 | . 2 2 2 . . 2 2 2 2 2 . 2 2 2 2 . 2 Hottest 170 | . 95 95 95 . . 83 120 170 170 150 . 96 96 92 86 . 165 Shots Fired 1062 | . 106 40 181 . . 66 27 277 123 70 . 12 40 29 31 . 60 Gun 391 | . 81 . 2 . . 46 10 167 38 11 . . . 12 15 . 9 Cannon 632 | . 25 40 179 . . 20 17 110 85 59 . 12 40 10 5 . 30 Launcher 37 | . . . . . . . . . . . . . . 7 9 . 21 Special 2 | . . . . . . . . . . . . . . . 2 . . Kinetic 571 | . 66 20 112 . . 46 10 167 . 26 . 12 40 22 20 . 30 Thermal 439 | . 27 20 69 . . 20 17 110 123 44 . . . . . . 9 Explosive 30 | . . . . . . . . . . . . . . 5 9 . 16 Electromagnetic 20 | . 13 . . . . . . . . . . . . 2 . . 5 Robot Hit Streak 17 | . 13 6 16 . . 11 6 15 17 8 . 3 9 5 6 . 10 Robot Miss Streak 6 | . 3 4 6 . . 3 2 5 3 4 . 3 2 3 4 . 6 Penetration Max 1 | . . . . . . . . . . . . . . 1 . . 1 Secondary Targets 1 | . 1 . . . . . . . . . . . . . . . . Max Gunslinging Chain 1 | . 1 . . . . . . . . . . . . . . . . Shots Hit Robots 627 | . 59 21 104 . . 45 20 164 76 40 . 6 22 17 13 . 40 Core Hits 310 | . 36 8 41 . . 20 9 73 32 25 . 4 11 13 16 . 22 Critical Kills 6 | . . . . . . 1 . 2 2 . . . . . 1 . . Critical Parts Destroyed 4 | . . . . . . . . . . . . . . 2 2 . . Critical Strikes 21 | . . . 8 . . 1 . 2 2 . . 1 2 2 3 . . Meltdown 3 | . . . . . . . . 1 2 . . . . . . . . Destroy 7 | . . . . . . 1 . 1 . . . . . 2 3 . . Blast 11 | . . . 8 . . . . . . . . 1 2 . . . . Melee Attacks . | . . . . . . . . . . . . . . . . . . Impact . | . . . . . . . . . . . . . . . . . . Slashing . | . . . . . . . . . . . . . . . . . . Piercing . | . . . . . . . . . . . . . . . . . . Sneak Attacks . | . . . . . . . . . . . . . . . . . . Combat Hostiles . | . . . . . . . . . . . . . . . . . . Follow-up Attacks . | . . . . . . . . . . . . . . . . . . Damage Inflicted 17444 | . 899 395 1992 . . 788 361 3363 2168 1350 . 184 625 748 678 . 3893 Guns 3849 | . 598 . . . . 556 122 1970 406 103 . . . 32 41 . 21 Cannons 9192 | . 301 395 1992 . . 232 239 1393 1762 1203 . 159 625 252 35 . 604 Explosions 4403 | . . . . . . . . . . 44 . 25 . 464 602 . 3268 Melee . | . . . . . . . . . . . . . . . . . . Ramming . | . . . . . . . . . . . . . . . . . . Kinetic 6826 | . 597 216 1270 . . 556 122 1970 . 477 . 159 625 284 76 . 474 Thermal 8287 | . 135 179 722 . . 232 239 1393 2168 873 . . . . . . 2346 Explosive 1967 | . . . . . . . . . . . . 25 . 349 602 . 991 Electromagnetic 364 | . 167 . . . . . . . . . . . . 115 . . 82 Impact . | . . . . . . . . . . . . . . . . . . Slashing . | . . . . . . . . . . . . . . . . . . Piercing . | . . . . . . . . . . . . . . . . . . Highest Corruption 6 | . . . . . . . . 5 6 1 1 1 1 1 4 4 . Average Corruption 2 | . . . . . . . . 4 5 1 1 1 1 1 2 4 . Corruption Purged . | . . . . . . . . . . . . . . . . . . Corruption Blocked . | . . . . . . . . . . . . . . . . . . Effects 127 | . . . . . . . . 51 33 3 . 2 13 9 14 2 . Message Errors 25 | . . . . . . . . 6 8 1 . . 3 2 4 1 . Matter Fused 38 | . . . . . . . . 19 8 1 . 1 6 1 2 . . Heat Flow Errors 15 | . . . . . . . . 6 5 . . . 2 . 2 . . Energy Discharges 16 | . . . . . . . . 7 4 . . . 1 2 1 1 . Parts Fused 2 | . . . . . . . . . 2 . . . . . . . . Data Loss (minor) 17 | . . . . . . . . 6 4 . . 1 1 1 4 . . Data Loss (major) 5 | . . . . . . . . 3 1 . . . . 1 . . . Misfires 4 | . . . . . . . . 2 1 . . . . 1 . . . Alerts 3 | . . . . . . . . 1 . 1 . . . 1 . . . Weapon Failures 2 | . . . . . . . . 1 . . . . . . 1 . . Overload Shots . | . . . . . . . . . . . . . . . . . . Overflow Damage 337 | . . . 10 . . . . 10 24 16 . . . 3 11 . 263 Projectiles 79 | . . . 10 . . . . . 24 16 . . . 3 . . 26 Explosions 258 | . . . . . . . . 10 . . . . . . 11 . 237 Melee . | . . . . . . . . . . . . . . . . . . Knockbacks 22 | . 2 1 8 . . . . . . 1 . . 1 1 . . 8 Impact . | . . . . . . . . . . . . . . . . . . Kinetic 22 | . 2 1 8 . . . . . . 1 . . 1 1 . . 8 Secondary . | . . . . . . . . . . . . . . . . . . Self-Inflicted Damage 783 | . . . . . . . . 223 . . . . . . 18 . 542 Shots 11 | . . . . . . . . 2 . . . . . . 1 . 8 Rammed . | . . . . . . . . . . . . . . . . . . Targets Rammed . | . . . . . . . . . . . . . . . . . . Kicked . | . . . . . . . . . . . . . . . . . . Crushed . | . . . . . . . . . . . . . . . . . . Highest Temperature 475 | . 222 247 318 . . 305 11 355 475 84 . . 213 54 264 . 195 Average Temperature 95 | . 55 115 87 . . 113 11 105 126 38 . . 101 23 65 . 72 Received Heat Transfer 3633 | . 180 132 267 84 . 585 90 975 441 210 . 42 45 93 45 . 444 Effects 8 | . . 1 2 . . . . 1 4 . . . . . . . . Shutdowns 1 | . . . . . . . . . 1 . . . . . . . . Energy Bleed 5 | . . 1 2 . . . . 1 1 . . . . . . . . Interference 1 | . . . . . . . . . 1 . . . . . . . . Short Circuit 1 | . . . . . . . . . 1 . . . . . . . . Siege Activations 1 | . . . . . . . . . . . . . . . 1 . . Total Turns 20 | . . . . . . . . . . . . . . . 20 . . Longest Duration 20 | . . . . . . . . . . . . . . . 20 . . Robots Corrupted . | . . . . . . . . . . . . . . . . . . Combat Hostiles . | . . . . . . . . . . . . . . . . . . Parts Fried 1 | . . . . . . . . . . . . . . 1 . . . Impact Corruptions . | . . . . . . . . . . . . . . . . . . Robots Melted 5 | . . . . . . . . 2 3 . . . . . . . . Combat Hostiles 5 | . . . . . . . . 2 3 . . . . . . . . Parts Melted 16 | . 1 . 2 . . . . 5 7 1 . . . . . . . Heat Transferred 9461 | . 273 370 1443 . . 481 481 2420 2852 919 . . . . . . 222 Parts Sabotaged . | . . . . . . . . . . . . . . . . . . Parts Stolen . | . . . . . . . . . . . . . . . . . . Parts Stripped . | . . . . . . . . . . . . . . . . . . Power Chain Reactions . | . . . . . . . . . . . . . . . . . . Alert | -11 -10 -10 -9 -9 -9 -8 -8 -8 -8 -7 -7 -7 -6 -6 -6 -6 -6 ------- Run | Yrd Mat Min Mat Min Exi Min Mat Gar Mat Fac Was Fac Fac Low Low Zio Dee Peak Influence 2355 | . 203 157 394 146 . 67 130 2355 1472 695 195 267 346 . . . . Initial 1147 | . . 29 2 124 . . . 84 1147 625 195 136 130 . . . . Average 494 | . 92 76 193 124 . 32 50 1105 1201 582 195 165 152 . . . . Maximum Alert Level 5 | . 1 . 2 . . . . 5 4 2 . 1 1 . . . . Low Security (%) 49 | 100 97 100 54 100 . 100 100 9 . . 100 82 60 . . . . Level 1 13 | . 2 . 45 . . . . 9 . . . 17 39 . . . . Level 2 12 | . . . . . . . . 16 . 100 . . . . . . . Level 3 4 | . . . . . . . . 13 13 . . . . . . . . Level 4 12 | . . . . . . . . 22 86 . . . . . . . . Level 5 6 | . . . . . . . . 27 . . . . . . . . . High Security . | . . . . . . . . . . . . . . . . . . Max Security . | . . . . . . . . . . . . . . . . . . Squads Dispatched 23 | . 2 . 1 1 . . 1 . 5 5 . 1 7 . . . . Investigation 3 | . 1 . 1 . . . . . 1 . . . . . . . . Extermination 6 | . . . . . . . . . . 2 . . 4 . . . . Reinforcement 7 | . 1 . . . . . . . . 2 . 1 3 . . . . Assault 6 | . . . . 1 . . . . 4 1 . . . . . . . Garrison 1 | . . . . . . . 1 . . . . . . . . . . Intercept . | . . . . . . . . . . . . . . . . . . Searches Triggered . | . . . . . . . . . . . . . . . . . . Construction Impeded 1 | . . . . . . . . . . 1 . . . . . . . Haulers Reinforced . | . . . . . . . . . . . . . . . . . . Active Scanning Responses . | . . . . . . . . . . . . . . . . . . Cargo Convoy Interrupts . | . . . . . . . . . . . . . . . . . . Stealth | -11 -10 -10 -9 -9 -9 -8 -8 -8 -8 -7 -7 -7 -6 -6 -6 -6 -6 --------- Run | Yrd Mat Min Mat Min Exi Min Mat Gar Mat Fac Was Fac Fac Low Low Zio Dee Distress Signals 17 | . 2 . 7 . . . 1 . 2 1 . . 4 . . . . Communications Jammed . | . . . . . . . . . . . . . . . . . . Distress Signals . | . . . . . . . . . . . . . . . . . . Times Spotted 218 | . 24 7 48 5 . 6 6 38 38 16 . 3 9 5 9 . 4 Peak Tracking Total 13 | . 4 3 9 4 . 3 3 4 13 5 . 2 2 3 5 . 3 Tactical Retreats 12 | . 2 . 4 . . . . 2 4 . . . . . . . . Traps | -11 -10 -10 -9 -9 -9 -8 -8 -8 -8 -7 -7 -7 -6 -6 -6 -6 -6 ------- Run | Yrd Mat Min Mat Min Exi Min Mat Gar Mat Fac Was Fac Fac Low Low Zio Dee Traps Triggered 18 | . 1 . . . . . . 14 1 1 . . 1 . . . . Indirectly . | . . . . . . . . . . . . . . . . . . Trap Hack Attempts . | . . . . . . . . . . . . . . . . . . Triggered . | . . . . . . . . . . . . . . . . . . Disarmed . | . . . . . . . . . . . . . . . . . . Reprogrammed . | . . . . . . . . . . . . . . . . . . Reused . | . . . . . . . . . . . . . . . . . . Traps Extracted . | . . . . . . . . . . . . . . . . . . Installed . | . . . . . . . . . . . . . . . . . . Triggered . | . . . . . . . . . . . . . . . . . . Machines | -11 -10 -10 -9 -9 -9 -8 -8 -8 -8 -7 -7 -7 -6 -6 -6 -6 -6 ---------- Run | Yrd Mat Min Mat Min Exi Min Mat Gar Mat Fac Was Fac Fac Low Low Zio Dee Machines Disabled 22 | . 1 . 1 . . . . 8 1 4 . 2 2 . 1 . 2 Max in Single Turn 3 | . 1 . 1 . . . . 2 1 3 . 2 . . 1 . 1 Garrison Access 1 | . . . . . . . . . 1 . . . . . . . . Garrison Relay 3 | . . . . . . . . 3 . . . . . . . . . Phase Generator 1 | . . . . . . . . 1 . . . . . . . . . Machines Repaired . | . . . . . . . . . . . . . . . . . . Machines Dismantled . | . . . . . . . . . . . . . . . . . . Machines Sabotaged . | . . . . . . . . . . . . . . . . . . Overloaded Fab Kills . | . . . . . . . . . . . . . . . . . . Hacking | -11 -10 -10 -9 -9 -9 -8 -8 -8 -8 -7 -7 -7 -6 -6 -6 -6 -6 --------- Run | Yrd Mat Min Mat Min Exi Min Mat Gar Mat Fac Was Fac Fac Low Low Zio Dee Machines Accessed 24 | . 3 . 2 . 2 1 2 2 5 1 . . 5 . 1 . . Terminals 18 | . 3 . 2 . . 1 1 2 4 1 . . 4 . . . . Fabricators 1 | . . . . . . . . . . . . . 1 . . . . Repair Stations . | . . . . . . . . . . . . . . . . . . Recycling Units . | . . . . . . . . . . . . . . . . . . Scanalyzers . | . . . . . . . . . . . . . . . . . . Garrison Access 2 | . . . . . . . 1 . 1 . . . . . . . . Total Hacks 54 | . 8 . 4 . 5 2 4 7 15 1 . . 7 . 1 . . Successful 23 | . 5 . 2 . 5 1 2 . 4 . . . 3 . 1 . . Failed 30 | . 3 . 2 . . 1 2 7 10 1 . . 4 . . . . Catastrophic 9 | . . . . . . . . 1 4 1 . . 3 . . . . Database Lockouts 1 | . . . . . . . . . 1 . . . . . . . . Manual 42 | . 8 . 5 . 1 2 4 . 15 1 . . 1 . 1 4 . Terminals 44 | . 8 . 4 . . 2 2 7 14 1 . . 6 . . . . Fabricators 1 | . . . . . . . . . . . . . 1 . . . . Repair Stations . | . . . . . . . . . . . . . . . . . . Recycling Units . | . . . . . . . . . . . . . . . . . . Scanalyzers . | . . . . . . . . . . . . . . . . . . Garrison Access 3 | . . . . . . . 2 . 1 . . . . . . . . Terminal Hacks 19 | . 5 . 2 . 5 1 1 . 2 . . . 2 . 1 . . Record 5 | . . . . . 4 . . . . . . . 1 . . . . Robot Analysis 9 | . 5 . 1 . . 1 1 . 1 . . . . . . . . Open Door 1 | . . . . . . . . . . . . . . . 1 . . Branch Access Points 3 | . . . 1 . . . . . 1 . . . 1 . . . . Derelict Proto ID Bank 1 | . . . . . 1 . . . . . . . . . . . . Fabricator Hacks 1 | . . . . . . . . . . . . . 1 . . . . Network Status 1 | . . . . . . . . . . . . . 1 . . . . Repair Station Hacks . | . . . . . . . . . . . . . . . . . . Recycling Unit Hacks . | . . . . . . . . . . . . . . . . . . Scanalyzer . | . . . . . . . . . . . . . . . . . . Garrison Access Hacks 2 | . . . . . . . 1 . 1 . . . . . . . . Unlock Access 1 | . . . . . . . 1 . . . . . . . . . . Seal Access 1 | . . . . . . . . . 1 . . . . . . . . Unauthorized Hacks 1 | . . . . . . . . . 1 . . . . . . . . Terminals 1 | . . . . . . . . . 1 . . . . . . . . Assimilate 1 | . . . . . . . . . 1 . . . . . . . . Fabricators . | . . . . . . . . . . . . . . . . . . Repair Stations . | . . . . . . . . . . . . . . . . . . Recycling Units . | . . . . . . . . . . . . . . . . . . Scanalyzers . | . . . . . . . . . . . . . . . . . . Garrison Access . | . . . . . . . . . . . . . . . . . . Data Cores Recovered . | . . . . . . . . . . . . . . . . . . Used . | . . . . . . . . . . . . . . . . . . Hacking Detections 18 | . 2 . 2 . . 1 1 2 4 1 . . 5 . . . . Full Trace Events 4 | . . . 1 . . . . 2 1 . . . . . . . . Feedback Events 1 | . . . . . . . . . 1 . . . . . . . . Corruption 1 | . . . . . . . . . 1 . . . . . . . . Feedback Blocked . | . . . . . . . . . . . . . . . . . . Robot Schematics Acquired . | . . . . . . . . . . . . . . . . . . Robots Built . | . . . . . . . . . . . . . . . . . . Authchips . | . . . . . . . . . . . . . . . . . . Time . | . . . . . . . . . . . . . . . . . . Total Robot Build Rating . | . . . . . . . . . . . . . . . . . . Part Schematics Acquired . | . . . . . . . . . . . . . . . . . . Parts Built . | . . . . . . . . . . . . . . . . . . Authchips . | . . . . . . . . . . . . . . . . . . Time . | . . . . . . . . . . . . . . . . . . Total Part Build Rating . | . . . . . . . . . . . . . . . . . . Parts Repaired . | . . . . . . . . . . . . . . . . . . Time . | . . . . . . . . . . . . . . . . . . Parts Recycled . | . . . . . . . . . . . . . . . . . . Recycled Matter . | . . . . . . . . . . . . . . . . . . Retrieved Matter . | . . . . . . . . . . . . . . . . . . Retrieved Components . | . . . . . . . . . . . . . . . . . . Parts Scanalyzed . | . . . . . . . . . . . . . . . . . . Part Schematics Acquired . | . . . . . . . . . . . . . . . . . . Parts Damaged . | . . . . . . . . . . . . . . . . . . Bothacking | -11 -10 -10 -9 -9 -9 -8 -8 -8 -8 -7 -7 -7 -6 -6 -6 -6 -6 ------------ Run | Yrd Mat Min Mat Min Exi Min Mat Gar Mat Fac Was Fac Fac Low Low Zio Dee Used RIF Installer . | . . . . . . . . . . . . . . . . . . Robots Hacked . | . . . . . . . . . . . . . . . . . . Non-combat . | . . . . . . . . . . . . . . . . . . Combat . | . . . . . . . . . . . . . . . . . . Robot Hacks Applied . | . . . . . . . . . . . . . . . . . . Relay Couplers Released 13 | . . . . . . . . 13 . . . . . . . . . Machine Destruction 13 | . . . . . . . . 13 . . . . . . . . . Fabnet Peak Effective % . | . . . . . . . . . . . . . . . . . . Robots Rewired . | . . . . . . . . . . . . . . . . . . Allies Hacked . | . . . . . . . . . . . . . . . . . . Hacks Repelled . | . . . . . . . . . . . . . . . . . . Allies | -11 -10 -10 -9 -9 -9 -8 -8 -8 -8 -7 -7 -7 -6 -6 -6 -6 -6 -------- Run | Yrd Mat Min Mat Min Exi Min Mat Gar Mat Fac Was Fac Fac Low Low Zio Dee Total Allies 31 | . . 2 . 1 . . . . 1 . 20 . . . . 7 . Largest Group 20 | . . 2 1 1 . . . . 1 1 20 20 18 . . 7 7 Highest-Rated Group 558 | . . 43 12 31 . . . . 26 26 558 558 488 . . 220 220 Highest-Rated Ally 51 | . . 31 12 31 . . . . 26 26 35 35 31 . . 51 51 Total Orders . | . . . . . . . . . . . . . . . . . . Ally Attacks 216 | . . 17 6 5 . . . . . . . 5 131 . . . 52 Total Damage 2750 | . . 233 35 87 . . . . . . . 89 1537 . . . 769 Kills 21 | . . 3 . 1 . . . . . . . 1 11 . . . 5 Allies Corrupted . | . . . . . . . . . . . . . . . . . . Allies Melted 1 | . . . . 1 . . . . . . . . . . . . . Intel | -11 -10 -10 -9 -9 -9 -8 -8 -8 -8 -7 -7 -7 -6 -6 -6 -6 -6 ------- Run | Yrd Mat Min Mat Min Exi Min Mat Gar Mat Fac Was Fac Fac Low Low Zio Dee Robot Analysis Total 8 | . 5 . 1 . . 1 1 . . . . . . . . . . Derelict Logs Recovered 4 | . . 1 . . . . . . . . . . . 1 1 1 . Drone Launches . | . . . . . . . . . . . . . . . . . . Drone Recoveries . | . . . . . . . . . . . . . . . . . . Exploration | -11 -10 -10 -9 -9 -9 -8 -8 -8 -8 -7 -7 -7 -6 -6 -6 -6 -6 ------------- Run | Yrd Mat Min Mat Min Exi Min Mat Gar Mat Fac Was Fac Fac Low Low Zio Dee Turns Passed 18569 | 88 1460 833 1637 397 468 953 293 3523 1206 1248 334 300 2113 596 982 1473 665 Spaces Moved 8606 | 50 672 371 600 181 218 441 125 1370 431 627 198 169 1055 328 551 910 309 Core 5 | 5 . . . . . . . . . . . . . . . . . Treads 4070 | 45 46 . . . . . 2 645 334 . . . 904 328 551 910 305 Legs . | . . . . . . . . . . . . . . . . . . Wheels 4531 | . 626 371 600 181 218 441 123 725 97 627 198 169 151 . . . 4 Hover . | . . . . . . . . . . . . . . . . . . Flight . | . . . . . . . . . . . . . . . . . . Fastest Speed 50 | 50 160 200 140 215 215 175 175 175 170 160 160 160 160 160 160 160 145 Average Speed 183 | 149 181 207 211 215 215 184 183 212 226 166 160 160 160 160 160 160 159 Slowest Speed 640 | 160 200 215 215 215 215 190 490 490 640 170 160 160 160 160 160 160 160 Overloaded Moves . | . . . . . . . . . . . . . . . . . . Propulsion Burnouts . | . . . . . . . . . . . . . . . . . . Robots Hopped . | . . . . . . . . . . . . . . . . . . Cave-ins Triggered . | . . . . . . . . . . . . . . . . . . Exploration Rate (%) 52 | 4 93 95 62 30 59 75 18 81 36 16 79 7 31 48 67 85 58 Regions Visited 17 Branch Regions 8 Pre-discovered Areas 5 | . . 1 . . 1 . . . . . . . . 2 . 1 . Known Exits Taken 4 | . . . 1 . . . 1 . . . . . 1 . 1 . . Unknown Exits Taken 10 | 1 1 1 . 1 1 1 . . 1 . . 1 . 1 . 1 . Scrap Searched 10 | . . 1 . . . . . . . . . . . 3 1 5 . Spaces Dug 7 | . . . . . . . . . 1 2 . . 4 . . . . Terrain Destroyed 448 | . . . . . . . . 159 24 35 . 23 11 31 55 . 110 Melee . | . . . . . . . . . . . . . . . . . . Projectile 54 | . . . . . . . . . 24 9 . 4 11 . 3 . 3 AOE 394 | . . . . . . . . 159 . 26 . 19 . 31 52 . 107 Terrain Rammed . | . . . . . . . . . . . . . . . . . . Walls Destroyed . | . . . . . . . . . . . . . . . . . . Machines Disabled . | . . . . . . . . . . . . . . . . . . Actions | -11 -10 -10 -9 -9 -9 -8 -8 -8 -8 -7 -7 -7 -6 -6 -6 -6 -6 --------- Run | Yrd Mat Min Mat Min Exi Min Mat Gar Mat Fac Was Fac Fac Low Low Zio Dee Total 10412 | 61 813 395 799 190 218 514 164 1744 542 771 220 189 1447 373 621 930 421 Wait 723 | . 28 . 60 10 . 20 3 37 25 70 7 9 347 16 29 12 50 Move 8587 | 49 671 370 599 180 217 440 124 1366 430 627 197 168 1054 327 550 909 309 Hop . | . . . . . . . . . . . . . . . . . . Pick Up 186 | 6 37 1 22 . 1 8 7 43 10 18 5 3 10 5 4 5 1 Fast Attach 35 | 6 1 1 . . . 2 1 10 2 2 2 . . . 4 . 4 Attach 90 | . 4 3 10 . . 7 4 24 4 7 . . 3 1 7 1 15 Detach 8 | . 1 . . . . . . 2 . 1 . . . . 3 . 1 Swap 32 | . 3 . 5 . . 2 4 4 3 . . . 3 5 . . 3 Drop 121 | . 15 . 12 . . 2 7 27 6 11 8 3 10 5 7 3 5 Fire 540 | . 53 20 91 . . 33 14 142 62 35 . 6 20 14 17 . 33 Melee . | . . . . . . . . . . . . . . . . . . Ram . | . . . . . . . . . . . . . . . . . . Kick . | . . . . . . . . . . . . . . . . . . Crush . | . . . . . . . . . . . . . . . . . . Escape Stasis 88 | . . . . . . . . 88 . . . . . . . . . Rewire 2 | . . . . . . . . 1 . . 1 . . . . . . Trap . | . . . . . . . . . . . . . . . . . . Miscellaneous . | . . . . . . . . . . . . . . . . . . Route ------- -11/Scrapyard -10/Materials (discovered 4 exits: *Mat x3 / [*Min]) -10/Mines (discovered 2 exits: *Mat x2) -9/Materials (discovered 3 exits: *Mat / *Min x2) -9/Mines -9/Exiles -8/Mines -8/Materials (discovered 2 exits: *Fac / Gar) -8/Garrison (discovered 3 exits: *Mat x3) -8/Materials -7/Factory -7/Waste -7/Factory -6/Factory (discovered 5 exits: [*Fac] / *Low x2 / *Ext x2) -6/Lower Caves -6/Lower Caves (discovered 2 exits: [*Fac] / *Zio) -6/Zion (discovered 2 exits: [*Dee] / [*Pro]) -6/Deep Caves History --------- Turn | Location | Event 10 | -11/Scrapyard | Discovered new exit (range 14) 89 | -11/Scrapyard | Entered Materials 304 | -10/Materials | Build established: Mutant 369 | -10/Materials | Discovered new exit (range 15) 406 | -10/Materials | Discovered new exit (range 15) 723 | -10/Materials | Discovered new exit (range 11) 1028 | -10/Materials | Discovered new exit (range 3) 1242 | -10/Materials | Core integrity fell below 50% 1549 | -10/Materials | Entered Mines 1645 | -10/Mines | Learned location of Storage (-7) 1855 | -10/Mines | Discovered new exit (range 7) 2210 | -10/Mines | Discovered new exit (range 12) 2382 | -10/Mines | Entered Materials 2382 | -9/Materials | Accompanied by 1 ally 2382 | -9/Materials | Evolved 2 slots: Propulsion x1, Utility x1 3266 | -9/Materials | Identified exit to Mines 3417 | -9/Materials | Lost 3 parts (2n1w) 3664 | -9/Materials | Discovered new exit (range 9) 3760 | -9/Materials | Build established: Scavenger-Mutant 4019 | -9/Materials | Entered Mines 4062 | -9/Mines | Deemed a non-threat by the Exiles lab entrance 4062 | -9/Mines | Discovered new exit (range 5) 4252 | -9/Mines | Met a Derelict testing a Signal Generator 4416 | -9/Mines | Entered Exiles 4472 | -9/Exiles | Met 8R-AWN 4507 | -9/Exiles | Met EX-HEX 4573 | -9/Exiles | Met EX-BIN 4597 | -9/Exiles | Aligned with FarCom system 4599 | -9/Exiles | Given EX-Vault access code 4649 | -9/Exiles | Opened EX-Vault 4677 | -9/Exiles | Found Modified TNC 4723 | -9/Exiles | Warned to stay clear of 0b10 Research branches 4787 | -9/Exiles | Met EX-DEC 4798 | -9/Exiles | Learned location of Zion (-6) 4860 | -9/Exiles | Discovered new exit (range 14) 4884 | -9/Exiles | Left Exiles lab with Modified TNC 4884 | -9/Exiles | Entered Mines 4925 | -8/Mines | Lost 4 parts (1p2n1u) 5541 | -8/Mines | Core integrity fell below 50% 5595 | -8/Mines | Lost 5 parts (1p1n3u) 5828 | -8/Mines | Discovered new exit (range 5) 5837 | -8/Mines | Entered Materials 5837 | -8/Materials | Evolved 2 slots: Propulsion x1, Utility x1 6045 | -8/Materials | Discovered new exit (range 14) 6099 | -8/Materials | Garrison activated, responded to threat 6128 | -8/Materials | Identified exit to Garrison 6130 | -8/Materials | Entered Garrison 6222 | -8/Garrison | Triggered checkpoint 6342 | -8/Garrison | Build established: Mutant 6448 | -8/Garrison | Triggered checkpoint 6458 | -8/Garrison | Triggered checkpoint 6593 | -8/Garrison | Discovered new exit (range 11) 6646 | -8/Garrison | Triggered checkpoint 6787 | -8/Garrison | Garrison Relay disabled 6806 | -8/Garrison | Garrison Relay disabled 7032 | -8/Garrison | Discovered new exit (range 11) 7090 | -8/Garrison | Triggered checkpoint 7127 | -8/Garrison | Garrison Relay disabled 7278 | -8/Garrison | Triggered checkpoint 7330 | -8/Garrison | Lost 3 parts (1p2n) 7611 | -8/Garrison | Core integrity fell below 50% 7698 | -8/Garrison | Triggered checkpoint 7762 | -8/Garrison | Discovered new exit (range 15) 7838 | -8/Garrison | Phase Generator disabled 7850 | -8/Garrison | Build established: Scavenger-Mutant 7987 | -8/Garrison | Attempted to access garrison exit controls, blocked by remote lockdown 8073 | -8/Garrison | Lost 7 parts (1p2n2u2w) 8392 | -8/Garrison | Lost 3 parts (1p1n1u) 8610 | -8/Garrison | Attempted to access garrison exit controls, blocked by remote lockdown 8848 | -8/Garrison | Spotted B-75 Beast 8996 | -8/Garrison | Destroyed B-75 Beast 9018 | -8/Garrison | Lost 3 parts (1p2w) 9653 | -8/Garrison | Entered Materials 10372 | -8/Materials | Central database locked down 10453 | -8/Materials | First assault squad dispatched 10495 | -8/Materials | Core integrity fell below 20% 10826 | -8/Materials | Discovered new exit (range 4) 10859 | -8/Materials | Entered Factory 10859 | -7/Factory | Accompanied by 1 ally 10859 | -7/Factory | Evolved 2 slots: Propulsion x1, Utility x1 11659 | -7/Factory | First assault squad dispatched 12107 | -7/Factory | Sucked down chute 12107 | -7/Factory | Entered Waste 12108 | -7/Waste | Joined by Warlord forces that had cleared the area 12323 | -7/Waste | Discovered new exit (range 12) 12441 | -7/Waste | Entered Factory 12441 | -7/Factory | Accompanied by 20 allies 12611 | -7/Factory | Discovered new exit (range 14) 12741 | -7/Factory | Entered another Factory area 12741 | -6/Factory | Accompanied by 18 allies 12741 | -6/Factory | Evolved 2 slots: Propulsion x1, Utility x1 13062 | -6/Factory | Spotted B-75 Beast 13070 | -6/Factory | Allies destroyed B-75 Beast 13106 | -6/Factory | Identified exit to Lower Caves 13106 | -6/Factory | Identified exit to Extension 13817 | -6/Factory | Lost 3 allies 13915 | -6/Factory | Discovered new exit (range 9) 14854 | -6/Factory | Entered Lower Caves 14860 | -6/Lower Caves | Met a Warlord Commander 14861 | -6/Lower Caves | Learned location of Warlord (-4) 14862 | -6/Lower Caves | Warlord Commander delivered Encrypted Comm Array 14865 | -6/Lower Caves | Found Encrypted Comm Array 15275 | -6/Lower Caves | Found DRS Beacon 15365 | -6/Lower Caves | Discovered new exit (range 16) 15450 | -6/Lower Caves | Entered another Lower Caves area 15474 | -6/Lower Caves | Discovered new exit (range 8) 15626 | -6/Lower Caves | Identified exit to Zion 15677 | -6/Lower Caves | Acquired the password to a Derelict Tinkerer's latest research 15696 | -6/Lower Caves | Found Prototype Special Weapon 15696 | -6/Lower Caves | Identified Molecular Deconstructor 15931 | -6/Lower Caves | Caught by Unaware searching for contraband prototypes 16432 | -6/Lower Caves | Entered Zion 16504 | -6/Zion | System corruption cleaned by Quarantine Array 16551 | -6/Zion | Learned Factory terminal intel 16562 | -6/Zion | Acquired unknown access codes intercepted by a Zionite 16668 | -6/Zion | Discovered new exit (range 16) 16922 | -6/Zion | Given the Hacking Drone Bay 16922 | -6/Zion | Found Prototype Device 17129 | -6/Zion | Gained Derelict followers 17296 | -6/Zion | Learned location of Armory (-4) 17389 | -6/Zion | Rebuked by Imprinter 17479 | -6/Zion | Given A8's code to call for help 17858 | -6/Zion | Opened final containment barrier to the Deep Caves 17887 | -6/Zion | Discovered new exit (range 3) 17887 | -6/Zion | Saw the warning signs outside the Deep Caves entrance 17905 | -6/Zion | Entered Deep Caves 17905 | -6/Deep Caves | Accompanied by 7 allies 18123 | -6/Deep Caves | Attacked by Z-Imprinter 18171 | -6/Deep Caves | Lost 3 allies 18230 | -6/Deep Caves | Z-Facility disabled 18257 | -6/Deep Caves | Murdered 4 allies 18447 | -6/Deep Caves | Spotted AG-85343 18499 | -6/Deep Caves | Core integrity fell below 50% 18538 | -6/Deep Caves | Core integrity fell below 20% 18570 | -6/Deep Caves | Destroyed by AG-85343 with Assembled Focal Cannon Last Messages --------------- 18522_ Enh. Armored Medium Treads destroyed. 18522_ Mak. Light Armor Plating destroyed. 18525_ AG-85343 knocked back. 18526_ Magnetic Acceleration Cannon destroyed. 18532_ Dropped Med. Matter Pod. 18532_ Rocket Launcher destroyed. 18532_ Kinecellerator destroyed. 18533_ Extracted 100 matter. 18534_ AG-85343 Prototype Device integration complete. 18537_ Magnetic Acceleration Cannon destroyed. 18544_ AG-85343 knocked back. 18546_ Imp. Deuterium Engine destroyed. 18547_ AG-85343 knocked back. 18550_ The unstable cave ceiling collapses. 18554_ Arm. Huge Wheel destroyed. 18558_ The unstable cave ceiling collapses. 18558_ Magnetic Acceleration Cannon destroyed. 18563_ AG-85343 IFF system glitched. 18570_ Destroyed Prototype Device. Map ----- +----------------------------------------------------+ | ???????????????????????????????????????????????? | | ???????????????????????????????????????????????? | | ???????????????????????????????????????????????? | | ???????????????????????????????????????????????? | | ????????????????????????? ???????????????????? | | ????????????????????? ???????????????????? | | ??????????????????? ???????????????????? | | ???????????????? /* * #???####???????????? | | ?????????????? * / #??## ##??????????? | | ???????????? / % #??# ##?????????# | | ???????????? / # ##???????## | | ??????????? # ????????# | | ??????????? ?# ????????## | | ?????????? % / % ## #????###### | | ?????????? / % ## ###### ## | | ?????????? %G ## | | ????????? | | ?????????"" ## | | ????????" M ### | | ?????????" #### #####?? | | ????????" #??### ##?????? | | ?????????" ##????## ##??????? | | ????????" #??????# #???????? | | ????????" ## % ##??????# #???????? | | ?????????"" ????# # #??????## ##???????? | | ??????????? # @ #???????###????????? | | ?????????????#????## ###??????????????????? | | | | | | | | | | | | | | | | | | | | | | | | | | | | | | | | | | | | | | | | | | | | | | | +----------------------------------------------------+ Best States ------------- Heat Dissipation 64 Energy Generation 21 Energy Capacity 325 Matter Stores 300 Matter Capacity 300 Sight Range 16 Robot Scan Range 16 Terrain Scan Density 10 Armor Coverage 1200 Propulsion Shielding 33 Evasion (%) 40 Targeting Accuracy 5 Core Analysis 6 Recoil Reduction 6 Kinecelleration 30 Offensive Hacking 20 Defensive Hacking 10 Item Schematics ----------------- None Robot Schematics ------------------ None Fabricated ------------ Nothing Alien Tech Used ----------------- None Achievements -------------- Deconstruction Challenges ------------ None Game ------ Seed MolecularVampiricCompanion Manual? 0 Play Time 01:26:07 Cumulative 122.8 hours Start 2024.11.22 @ 19:52:00 End 2024.11.22 @ 21:19:59 Sessions 3 Manual Loads 0 Difficulty Rogue Special Mode None Game No. 147 Rogue 147 Adventurer 0 Explorer 0 Win Type - Total 1 Types 1/0/0/0/0/0/0/0/0 Lore% 65 Gallery% 55 Achievement% 46 Wizard Run 0 Options --------- Layout 1 ASCII 0 Keyboard 1 Movement Numpad Keybinds 0 Fullscreen 1 Font 24/Smallcaps Map View 50x35 Zoom Use 0% Tactical HUD 1 Map Filters NONE Filters NONE Steam 1 RUN: ba665e10-46af-4a66-98ed-752bbb7985b1